bitfinex/quotes_BTCUSD_20241216
["timestamp","ask_amount","ask_price","bid_price","bid_amount"]
[1734357343729,0.08414051,103680.0,103670.0,0.1500863]
[1734357343930,0.08414051,103680.0,103660.0,0.01833814]
[1734357343931,0.27704151,103680.0,103660.0,0.01833814]
[1734357344168,0.27583589,103680.0,103650.0,0.78008111]
[1734357344294,0.46874389,103680.0,103660.0,0.077173]
[1734357344660,0.08293489,103680.0,103670.0,0.038583]
[1734357344861,0.08414062,103680.0,103660.0,0.115756]
[1734357345067,0.08414062,103680.0,103670.0,0.038583]
[1734357345966,0.08414062,103680.0,103660.0,0.163634]
[1734357346173,0.08414062,103680.0,103660.0,0.27248091]
[1734357346532,0.08414062,103680.0,103670.0,0.038583]
[1734357346925,0.08293489,103680.0,103670.0,0.10884491]
[1734357347134,0.00073489,103680.0,103670.0,0.10884491]
[1734357347750,0.00073489,103680.0,103670.0,0.19530891]
[1734357348404,0.00073489,103680.0,103670.0,0.19539521]
[1734357348818,0.00073489,103680.0,103670.0,0.52754599]
[1734357349021,0.00073489,103680.0,103670.0,0.6073377]
[1734357349230,0.00073489,103680.0,103670.0,0.07418943]
[1734357349432,0.00073489,103680.0,103670.0,0.10884491]
[1734357350062,0.00073489,103680.0,103670.0,0.14561858]
[1734357351383,0.00073489,103680.0,103670.0,0.05499551]
[1734357352443,0.00073489,103680.0,103670.0,0.16203109]
[1734357354286,0.00073489,103680.0,103670.0,0.27932179]
[1734357354488,0.00073489,103680.0,103670.0,0.40897619]
[1734357354958,0.00073489,103680.0,103670.0,0.68027619]
[1734357355173,0.00073489,103680.0,103670.0,0.93555984]
[1734357357244,8.9e-07,103680.0,103670.0,1.09259542]
[1734357357466,8.9e-07,103680.0,103670.0,1.27533196]
[1734357357710,8.9e-07,103680.0,103670.0,1.03500522]
[1734357357906,8.9e-07,103680.0,103670.0,1.22885593]
[1734357359017,8.9e-07,103680.0,103670.0,1.63040708]
[1734357359242,8.9e-07,103680.0,103670.0,1.27224983]
[1734357361872,8.9e-07,103680.0,103670.0,1.27191425]
[1734357366602,8.9e-07,103680.0,103670.0,1.2712628]
[1734357367856,8.9e-07,103680.0,103670.0,1.27132697]
[1734357369061,8.9e-07,103680.0,103670.0,1.14378075]
[1734357369411,8.9e-07,103680.0,103670.0,1.18236375]
[1734357370281,8.9e-07,103680.0,103670.0,1.18224329]
[1734357371321,8.9e-07,103680.0,103670.0,1.18175277]
[1734357371528,8.9e-07,103680.0,103670.0,1.19700665]
[1734357372158,8.9e-07,103680.0,103670.0,1.19353687]
[1734357374910,8.9e-07,103680.0,103670.0,0.97790312]
[1734357376059,8.9e-07,103680.0,103670.0,0.97696751]
[1734357376729,4.9e-07,103690.0,103680.0,0.33178046]
[1734357376961,4.9e-07,103690.0,103680.0,0.81429977]
[1734357377139,4.9e-07,103690.0,103680.0,1.30677004]
[1734357377408,4.9e-07,103690.0,103680.0,1.13422399]
[1734357377957,4.9e-07,103690.0,103680.0,1.20632399]
[1734357378163,0.0822,103710.0,103700.0,0.073]
[1734357378499,0.0001726,103720.0,103710.0,0.211569]
[1734357378500,0.0793726,103720.0,103710.0,0.211569]
[1734357378804,0.0793726,103720.0,103710.0,0.5325151]
[1734357379127,0.0793726,103720.0,103710.0,0.96176968]
[1734357379749,0.0793726,103720.0,103710.0,0.96182594]
[1734357379961,0.0793726,103720.0,103710.0,1.03526416]
[1734357380157,0.0001726,103720.0,103710.0,1.03526416]
[1734357380410,0.0001726,103720.0,103710.0,1.0527524]
[1734357381204,0.0001726,103720.0,103710.0,0.78539131]
[1734357381403,0.0001726,103720.0,103710.0,0.80287955]
[1734357381604,0.0001726,103720.0,103710.0,1.2250708]
[1734357381782,0.0001726,103720.0,103710.0,1.20758256]
[1734357385986,0.0001726,103720.0,103710.0,1.2226391]
[1734357387183,0.0001726,103720.0,103710.0,1.05013013]
[1734357387787,0.0001726,103720.0,103710.0,1.2226391]
[1734357388226,0.0001726,103720.0,103710.0,1.05013013]
[1734357388429,0.0001726,103720.0,103710.0,1.2226391]
[1734357390479,0.0001726,103720.0,103710.0,1.05013013]
[1734357390943,0.0001726,103720.0,103710.0,1.05015339]
[1734357391965,0.0001726,103720.0,103710.0,1.22266236]
[1734357392671,0.0001726,103720.0,103710.0,1.23598764]
[1734357393084,0.0001726,103720.0,103710.0,1.25403704]
[1734357393634,0.0001726,103720.0,103710.0,1.24071176]
[1734357394258,0.0001726,103720.0,103710.0,1.45634797]
[1734357394432,0.0001726,103720.0,103710.0,1.24071176]
[1734357394638,0.0001726,103720.0,103710.0,1.35204409]
[1734357395045,0.0001726,103720.0,103710.0,1.43821814]
[1734357395217,0.0001726,103720.0,103710.0,1.35204409]
[1734357395419,0.0001726,103720.0,103710.0,1.02965189]
[1734357395719,0.0001726,103720.0,103710.0,0.91822089]
[1734357395917,0.0001726,103720.0,103710.0,0.93342711]
[1734357396089,0.0001726,103720.0,103710.0,0.91822089]
[1734357398332,0.0001726,103720.0,103710.0,1.06822089]
[1734357398536,0.0001726,103720.0,103710.0,1.09072986]
[1734357398750,0.0001726,103720.0,103710.0,1.15455924]
[1734357398952,0.0001726,103720.0,103710.0,1.09078327]
[1734357399473,0.0001726,103720.0,103710.0,1.00455924]
[1734357400040,0.0001726,103720.0,103710.0,0.9310568]
[1734357400178,0.0001726,103720.0,103710.0,0.93393886]
[1734357400587,0.0001726,103720.0,103710.0,1.00923837]
[1734357400823,0.0001726,103720.0,103710.0,1.14957507]
[1734357402462,0.0001726,103720.0,103710.0,1.02019334]
[1734357403394,0.0001726,103720.0,103710.0,1.02132145]
[1734357404948,0.0001726,103720.0,103710.0,1.1507867]
[1734357405326,0.0001726,103720.0,103710.0,0.84871514]
[1734357405526,0.0001726,103720.0,103710.0,0.89186672]
[1734357406310,0.0001726,103720.0,103710.0,0.63295725]
[1734357407562,0.0001726,103720.0,103710.0,0.89186672]
[1734357408109,6e-07,103720.0,103710.0,0.89186672]
[1734357408332,0.07225216,103750.0,103740.0,0.211557]
[1734357408544,0.07225216,103750.0,103740.0,0.73211855]
[1734357408805,0.07225216,103750.0,103740.0,1.15534582]
[1734357409013,0.07225216,103750.0,103740.0,1.08517747]
[1734357409659,0.11785216,103750.0,103740.0,1.08517747]
[1734357410400,0.07225216,103750.0,103740.0,1.09684593]
[1734357411027,0.07225216,103750.0,103740.0,1.08517747]
[1734357411571,0.07225216,103750.0,103740.0,0.91256483]
[1734357411728,0.07225216,103750.0,103740.0,1.08517747]
[1734357412254,0.07225216,103750.0,103740.0,0.91256483]
[1734357412450,0.07225216,103750.0,103740.0,1.08517747]
[1734357412856,0.07225216,103750.0,103740.0,1.21463696]
[1734357413449,0.07225216,103750.0,103740.0,0.9125234]
[1734357413851,0.07225216,103750.0,103740.0,1.21463696]
[1734357414538,0.07225216,103750.0,103740.0,1.26463696]
[1734357414782,0.07225216,103750.0,103740.0,1.22424479]
[1734357414997,0.0789,103760.0,103750.0,0.188551]
[1734357415244,0.0790724,103770.0,103760.0,0.06155]
[1734357415455,0.0790724,103770.0,103760.0,0.71176034]
[1734357415684,0.0790724,103770.0,103760.0,0.60983702]
[1734357416358,0.07924123,103770.0,103760.0,0.60983702]
[1734357417650,0.07924123,103770.0,103760.0,0.58241039]
[1734357418489,0.07924123,103770.0,103760.0,0.71176034]
[1734357418700,0.07924123,103770.0,103760.0,0.39207369]
[1734357418903,0.07924123,103770.0,103760.0,0.53241039]
[1734357420559,0.07924123,103770.0,103760.0,0.66176034]
[1734357421393,0.07924123,103770.0,103760.0,0.77110914]
[1734357421820,0.12544123,103770.0,103760.0,0.65381844]
[1734357422033,0.12544123,103770.0,103760.0,0.18855]
[1734357422254,0.12544123,103770.0,103760.0,0.25871835]
[1734357422880,0.12544123,103770.0,103760.0,0.27775531]
[1734357423087,0.12544123,103770.0,103760.0,0.20758696]
[1734357423499,0.12544123,103770.0,103760.0,0.27775531]
[1734357424129,0.12544123,103770.0,103760.0,0.20758696]
[1734357428631,0.31937882,103770.0,103760.0,0.15]
[1734357428832,0.0768,103750.0,103740.0,0.077109]
[1734357430074,0.0768,103750.0,103740.0,0.227109]
[1734357430730,0.0768,103750.0,103740.0,0.25048452]
[1734357430944,0.0768,103750.0,103740.0,0.32065287]
[1734357441390,0.0768,103750.0,103740.0,0.1500862]
[1734357441391,0.12490487,103750.0,103740.0,0.1500862]
[1734357441619,0.31767587,103750.0,103740.0,8.62e-05]
[1734357441828,0.316471,103750.0,103740.0,8.62e-05]
[1734357442824,0.316471,103750.0,103740.0,0.1500862]
[1734357443043,0.1237,103750.0,103740.0,0.1886432]
[1734357443248,0.1237,103750.0,103740.0,0.3289799]
[1734357443428,0.1237,103750.0,103740.0,0.25881155]
[1734357444304,0.1237,103750.0,103740.0,0.1886432]
[1734357450451,0.1237,103750.0,103740.0,0.25881155]
[1734357451310,0.1237,103750.0,103740.0,0.1500862]
[1734357451519,0.31767584,103750.0,103740.0,0.1500862]
[1734357451743,0.316471,103750.0,103740.0,0.1500862]
[1734357452356,0.3166434,103750.0,103740.0,0.1500862]
[1734357453256,0.1238724,103750.0,103740.0,0.25881155]
[1734357453664,0.1238724,103750.0,103740.0,0.3289799]
[1734357453665,0.0769724,103750.0,103740.0,0.3289799]
[1734357454070,0.0769724,103750.0,103740.0,0.25881155]
[1734357461838,0.0769724,103750.0,103740.0,0.3289799]
[1734357462044,0.0769724,103750.0,103740.0,0.80034023]
[1734357462246,0.0769724,103750.0,103740.0,0.71425952]
[1734357462403,0.0769724,103750.0,103740.0,0.35625025]
[1734357462571,0.0769724,103750.0,103740.0,0.51209795]
[1734357462784,0.0769724,103750.0,103740.0,0.76667638]
[1734357463021,0.0001724,103750.0,103740.0,0.76667638]
[1734357463238,0.0001724,103750.0,103740.0,0.79074629]
[1734357464222,0.0001724,103750.0,103740.0,0.96347713]
[1734357464426,0.0001724,103750.0,103740.0,1.02719791]
[1734357464629,0.0001724,103750.0,103740.0,1.11360098]
[1734357464833,0.0001724,103750.0,103740.0,1.1136031]
[1734357465248,0.0001724,103750.0,103740.0,1.02719791]
[1734357466292,0.0001724,103750.0,103740.0,1.29311146]
[1734357466547,0.0001724,103750.0,103740.0,1.29289514]
[1734357466737,0.0001724,103750.0,103740.0,1.20875751]
[1734357467800,0.0001724,103750.0,103740.0,1.10607569]
[1734357468003,0.0001724,103750.0,103740.0,1.18697569]
[1734357470157,0.0001724,103750.0,103740.0,0.97091298]
[1734357470599,0.0001724,103750.0,103740.0,1.18698062]
[1734357470834,0.0001724,103750.0,103740.0,0.97091298]
[1734357471618,4e-07,103750.0,103740.0,1.23018824]
[1734357472243,4e-07,103750.0,103740.0,1.3537491]
[1734357472837,4e-07,103750.0,103740.0,1.4037491]
[1734357473475,4e-07,103750.0,103740.0,1.3537491]
[1734357476854,4e-07,103750.0,103740.0,1.22987804]
[1734357477061,4e-07,103750.0,103740.0,1.15970969]
[1734357477265,4e-07,103750.0,103740.0,1.07880969]
[1734357477566,4e-07,103750.0,103740.0,0.76984463]
[1734357477794,4e-07,103750.0,103740.0,0.9856503]
[1734357478184,4e-07,103750.0,103740.0,1.02880969]
[1734357478389,4e-07,103750.0,103740.0,1.07880969]
[1734357479027,4e-07,103750.0,103740.0,1.02880969]
[1734357479956,4e-07,103750.0,103740.0,1.07880969]
[1734357480373,4e-07,103750.0,103740.0,1.02654394]
[1734357480576,4e-07,103750.0,103740.0,1.07654394]
[1734357481188,4e-07,103750.0,103740.0,1.02654394]
[1734357482544,0.0792004,103750.0,103740.0,1.05645141]
[1734357482743,0.0792004,103750.0,103740.0,0.9378589]
[1734357484075,0.0792004,103750.0,103740.0,0.9763609]
[1734357486757,0.0792004,103750.0,103740.0,0.8360242]
[1734357486937,0.0792004,103750.0,103740.0,1.14894776]
[1734357487140,0.0792004,103750.0,103740.0,1.27839085]
[1734357487546,0.0792004,103750.0,103740.0,1.2082225]
[1734357487754,0.1276004,103750.0,103740.0,1.07878172]
[1734357488136,0.1276004,103750.0,103740.0,1.08172447]
[1734357488312,0.1276004,103750.0,103740.0,1.08171546]
[1734357489850,0.1276004,103750.0,103740.0,1.15188381]
[1734357490038,0.1276004,103750.0,103740.0,1.16709003]
[1734357490244,0.1276004,103750.0,103740.0,1.15188381]
[1734357490439,0.1276004,103750.0,103740.0,0.98854711]
[1734357490645,0.1276004,103750.0,103740.0,0.50198595]
[1734357492059,0.1276004,103750.0,103740.0,0.5721543]
[1734357492936,0.1276004,103750.0,103740.0,0.57218405]
[1734357494856,0.1276004,103750.0,103740.0,0.63152801]
[1734357495059,0.1276004,103750.0,103740.0,0.5020157]
[1734357496307,0.1276004,103750.0,103740.0,0.63152801]
[1734357496914,0.1276004,103750.0,103740.0,0.70169636]
[1734357497630,0.1276004,103750.0,103740.0,0.8868192]
[1734357497843,0.1276004,103750.0,103740.0,0.95698755]
[1734357498394,0.1276004,103750.0,103740.0,0.1403367]
[1734357498595,0.1276004,103750.0,103740.0,0.1788937]
[1734357499822,0.1276004,103750.0,103740.0,0.12725151]
[1734357500731,0.1276004,103750.0,103740.0,0.27725151]
[1734357500929,0.1276004,103750.0,103740.0,0.34741986]
[1734357502463,0.1276004,103750.0,103740.0,0.27725151]
[1734357503212,0.1276004,103750.0,103740.0,0.34741986]
[1734357503425,0.1276004,103750.0,103740.0,0.27725151]
[1734357503877,0.0792004,103750.0,103740.0,0.34741986]
[1734357504729,4e-07,103750.0,103740.0,1.13039683]
[1734357504944,4e-07,103750.0,103740.0,1.07446604]
[1734357505147,4e-07,103750.0,103740.0,1.06029218]
[1734357507578,4e-07,103750.0,103740.0,1.27614604]
[1734357507973,4e-07,103750.0,103740.0,1.06029218]
[1734357508179,4e-07,103750.0,103740.0,1.27614604]
[1734357508389,4e-07,103750.0,103740.0,1.14657003]
[1734357508593,4e-07,103750.0,103740.0,0.97388694]
[1734357508815,4e-07,103750.0,103740.0,0.97406329]
[1734357509364,4e-07,103750.0,103740.0,0.97414949]
[1734357510621,4e-07,103750.0,103740.0,1.08781285]
[1734357510840,4e-07,103750.0,103740.0,1.06950814]
[1734357511050,4e-07,103750.0,103740.0,1.10806514]
[1734357511471,4e-07,103750.0,103740.0,1.10774897]
[1734357512100,4e-07,103750.0,103740.0,0.97812712]
[1734357512325,4e-07,103750.0,103740.0,0.96741256]
[1734357512553,4e-07,103750.0,103740.0,1.10774926]
[1734357512756,4e-07,103750.0,103740.0,1.27683411]
[1734357512964,4e-07,103750.0,103740.0,1.23173411]
[1734357514339,4e-07,103750.0,103740.0,1.10211704]
[1734357514750,4e-07,103750.0,103740.0,0.92928791]
[1734357514956,4e-07,103750.0,103740.0,1.10211704]
[1734357515179,4e-07,103750.0,103740.0,1.01569769]
[1734357515378,0.0754004,103750.0,103740.0,0.75807029]
[1734357515583,0.1246004,103750.0,103740.0,0.81199908]
[1734357515809,0.0754004,103750.0,103740.0,0.81199908]
[1734357517424,0.0754004,103750.0,103740.0,0.98482821]
[1734357517572,0.0754004,103750.0,103740.0,0.81199908]
[1734357518351,0.1218004,103750.0,103740.0,0.67166238]
[1734357518579,0.1218004,103750.0,103740.0,0.59183073]
[1734357518782,0.1218004,103750.0,103740.0,0.21431762]
[1734357519834,0.1218004,103750.0,103740.0,0.36431762]
[1734357520601,0.1218004,103750.0,103740.0,0.74501488]
[1734357520953,0.1218004,103750.0,103740.0,0.91790949]
[1734357521276,0.1218004,103750.0,103740.0,0.74501488]
[1734357521708,0.1218004,103750.0,103740.0,0.91790949]
[1734357523027,0.1218004,103750.0,103740.0,0.98807784]
[1734357524613,0.1218004,103750.0,103740.0,0.91790949]
[1734357527971,0.1218004,103750.0,103740.0,0.84774114]
[1734357528476,0.1218004,103750.0,103740.0,0.91790949]
[1734357529275,0.1218004,103750.0,103740.0,0.98807784]
[1734357530376,0.1218004,103750.0,103740.0,1.2041961]
[1734357530573,0.1218004,103750.0,103740.0,1.1177488]
[1734357530776,0.1218004,103750.0,103740.0,1.20426442]
[1734357531215,0.1218004,103750.0,103740.0,1.1177488]
[1734357531689,0.1218004,103750.0,103740.0,1.20427223]
[1734357531888,0.1218004,103750.0,103740.0,1.20427221]
[1734357532131,0.1218004,103750.0,103740.0,1.04758045]
[1734357532750,0.1218004,103750.0,103740.0,1.1177488]
[1734357532955,0.0754004,103750.0,103740.0,0.98807784]
[1734357533161,4e-07,103750.0,103740.0,0.93247393]
[1734357533366,4e-07,103750.0,103740.0,0.98167393]
[1734357533580,4e-07,103750.0,103740.0,1.02489759]
[1734357534203,4e-07,103750.0,103740.0,0.9818728]
[1734357535272,4e-07,103750.0,103740.0,0.76555567]
[1734357535475,4e-07,103750.0,103740.0,1.02489759]
[1734357536106,4e-07,103750.0,103740.0,0.76555567]
[1734357536508,4e-07,103750.0,103740.0,0.98186547]
[1734357536714,4e-07,103750.0,103740.0,1.02489759]
[1734357536914,4e-07,103750.0,103740.0,0.76555567]
[1734357537128,4e-07,103750.0,103740.0,1.02489759]
[1734357539334,4e-07,103750.0,103740.0,1.09506594]
[1734357539533,4e-07,103750.0,103740.0,1.07489759]
[1734357539887,4e-07,103750.0,103740.0,1.02489759]
[1734357541138,4e-07,103750.0,103740.0,0.74107019]
[1734357541360,0.0826004,103750.0,103740.0,0.83835018]
[1734357541568,0.0826004,103750.0,103740.0,0.98838059]
[1734357541800,0.0826004,103750.0,103740.0,0.9883834]
[1734357542003,0.0826004,103750.0,103740.0,0.81535018]
[1734357542715,0.0826004,103750.0,103740.0,0.84805177]
[1734357542928,0.0826004,103750.0,103740.0,0.91822012]
[1734357543257,0.0826004,103750.0,103740.0,0.74518183]
[1734357543700,0.0826004,103750.0,103740.0,1.11817245]
[1734357543903,0.0826004,103750.0,103740.0,1.0480041]
[1734357544107,0.0826004,103750.0,103740.0,0.91822024]
[1734357545502,0.0826004,103750.0,103740.0,0.97783516]
[1734357545751,0.0826004,103750.0,103740.0,1.04800351]
[1734357546737,0.0826004,103750.0,103740.0,1.04834202]
[1734357548445,0.0826004,103750.0,103740.0,1.04802859]
[1734357550184,0.0826004,103750.0,103740.0,1.11819694]
[1734357550406,0.0826004,103750.0,103740.0,1.04802859]
[1734357553086,0.0826004,103750.0,103740.0,1.11819694]
[1734357553267,0.0826004,103750.0,103740.0,0.9884113]
[1734357553476,0.0826004,103750.0,103740.0,0.83836378]
[1734357553682,4e-07,103750.0,103740.0,0.97591636]
[1734357555997,4e-07,103750.0,103740.0,0.97226475]
[1734357556851,4e-07,103750.0,103740.0,0.97828215]
[1734357557479,4e-07,103750.0,103740.0,1.2205331]
[1734357557692,4e-07,103750.0,103740.0,1.01604538]
[1734357557918,4e-07,103750.0,103740.0,1.22655043]
[1734357558342,4e-07,103750.0,103740.0,1.35025143]
[1734357558756,4e-07,103750.0,103740.0,1.57274878]
[1734357558968,4e-07,103750.0,103740.0,1.57275023]
[1734357559175,4e-07,103750.0,103740.0,1.22647425]
[1734357560732,4e-07,103750.0,103740.0,1.22373168]
[1734357563744,4e-07,103750.0,103740.0,1.01322663]
[1734357563959,4e-07,103750.0,103740.0,1.15356333]
[1734357564815,4e-07,103750.0,103740.0,1.22373168]
[1734357566829,4e-07,103750.0,103740.0,1.22373117]
[1734357569613,4e-07,103750.0,103740.0,1.56337308]
[1734357570036,4e-07,103750.0,103740.0,1.22242713]
[1734357570449,4e-07,103750.0,103740.0,1.14362713]
[1734357572251,4e-07,103750.0,103740.0,0.93312208]
[1734357572429,4e-07,103750.0,103740.0,1.14362713]
[1734357573060,4e-07,103750.0,103740.0,1.07345878]
[1734357573279,4e-07,103750.0,103740.0,1.22472713]
[1734357574118,4e-07,103750.0,103740.0,0.96547344]
[1734357574330,4e-07,103750.0,103740.0,1.34827772]
[1734357574989,4e-07,103750.0,103740.0,1.35739802]
[1734357575202,4e-07,103750.0,103740.0,1.14689297]
[1734357575412,4e-07,103750.0,103740.0,1.35739802]
[1734357575628,0.08204123,103770.0,103760.0,0.073]
[1734357575840,0.0001724,103780.0,103770.0,0.038546]
[1734357576091,0.00022863,103780.0,103770.0,0.89093644]
[1734357576306,6.3e-07,103780.0,103770.0,0.96930202]
[1734357576535,6.3e-07,103780.0,103770.0,0.7533319]
[1734357576750,6.3e-07,103780.0,103770.0,1.03938296]
[1734357576957,6.3e-07,103780.0,103770.0,0.96921461]
[1734357577190,6.3e-07,103780.0,103770.0,0.7533319]
[1734357577610,6.3e-07,103780.0,103770.0,0.96914099]
[1734357578682,6.3e-07,103780.0,103770.0,0.97460094]
[1734357579099,6.3e-07,103780.0,103770.0,0.96699208]
[1734357579497,6.3e-07,103780.0,103770.0,1.13959658]
[1734357579829,0.07890063,103780.0,103770.0,0.94925988]
[1734357580060,0.07890063,103780.0,103770.0,0.82371986]
[1734357580493,0.07890063,103780.0,103770.0,0.44530966]
[1734357580923,0.07890063,103780.0,103770.0,0.35101896]
[1734357581125,0.07890063,103780.0,103770.0,0.26473117]
[1734357581946,0.07890063,103780.0,103770.0,0.19456282]
[1734357583378,0.08010513,103780.0,103770.0,0.19456282]
[1734357584388,0.12730513,103780.0,103770.0,0.19456282]
[1734357586002,0.12730513,103780.0,103770.0,0.22419633]
[1734357587652,0.0826,103770.0,103760.0,0.25425906]
[1734357587849,0.0826,103770.0,103760.0,0.038548]
[1734357589253,0.12950463,103770.0,103760.0,0.06810068]
[1734357589661,0.12950463,103770.0,103760.0,0.21810068]
[1734357596744,0.04690463,103770.0,103750.0,0.20198611]
[1734357596903,0.0806,103760.0,103750.0,0.27488211]
[1734357598066,0.0806,103760.0,103750.0,0.40437728]
[1734357598410,0.0806,103760.0,103750.0,0.27488211]
[1734357598807,0.0806,103760.0,103750.0,0.42999135]
[1734357599045,0.0806,103760.0,103750.0,0.30049618]
[1734357599275,0.0806,103760.0,103750.0,0.21416607]
[1734357599675,0.0806,103760.0,103750.0,0.22018399]
[1734357600076,0.0806,103760.0,103750.0,0.21416607]
[1734357600294,0.08180477,103760.0,103750.0,0.21416607]
[1734357601099,0.08180477,103760.0,103750.0,0.22018387]
[1734357601849,0.08180477,103760.0,103750.0,0.21416607]
[1734357602051,0.13020477,103760.0,103750.0,0.188552]
[1734357602260,0.13020477,103760.0,103750.0,0.15]
[1734357602261,0.41724747,103760.0,103750.0,0.15]
[1734357602474,0.2232907,103760.0,103750.0,0.188554]
[1734357603120,0.2232907,103760.0,103750.0,0.19457222]
[1734357603733,0.2232907,103760.0,103750.0,0.00375149]
[1734357604156,0.2232907,103760.0,103750.0,0.04230549]
[1734357605889,0.2232907,103760.0,103750.0,0.038554]
[1734357606773,0.2232907,103760.0,103750.0,0.10871243]
[1734357606979,0.0806,103760.0,103750.0,0.32887086]
[1734357607192,0.04887303,103780.0,103770.0,0.038546]
[1734357607411,0.00017303,103780.0,103770.0,0.10870443]
[1734357607652,0.07717303,103780.0,103770.0,0.7943378]
[1734357607879,0.00017303,103780.0,103770.0,0.9677416]
[1734357608096,0.00017303,103780.0,103770.0,0.97566427]
[1734357608517,0.00017303,103780.0,103770.0,0.42315356]
[1734357608726,0.00017303,103780.0,103770.0,0.72517391]
[1734357608933,0.00017303,103780.0,103770.0,0.97427931]
[1734357609144,0.00017303,103780.0,103770.0,1.06057276]
[1734357609373,0.00017303,103780.0,103770.0,0.34499788]
[1734357609660,0.00017303,103780.0,103770.0,0.038546]
[1734357609661,0.07867303,103780.0,103770.0,0.038546]
[1734357610939,0.07867303,103780.0,103770.0,0.188546]
[1734357611557,0.07867303,103780.0,103770.0,0.21377272]
[1734357613591,0.17296373,103780.0,103770.0,0.21377272]
[1734357613795,0.17296373,103780.0,103770.0,0.188546]
[1734357614874,0.17416832,103780.0,103770.0,0.188546]
[1734357615931,0.07987762,103780.0,103770.0,0.188546]
[1734357616134,0.07867303,103780.0,103770.0,0.188546]
[1734357616341,0.07867303,103780.0,103770.0,0.29541397]
[1734357616563,0.07867303,103780.0,103770.0,0.188546]
[1734357616743,0.07987756,103780.0,103770.0,0.188546]
[1734357617185,0.07867303,103780.0,103770.0,0.188546]
[1734357622469,0.07867303,103780.0,103770.0,0.19456261]
[1734357622669,0.00017303,103780.0,103770.0,0.40829855]
[1734357622986,0.00017303,103780.0,103770.0,0.494592]
[1734357623320,0.00017303,103780.0,103770.0,0.9708868]
[1734357623523,0.00017303,103780.0,103770.0,1.03660189]
[1734357623730,0.00017303,103780.0,103770.0,1.16603726]
[1734357623946,0.00017303,103780.0,103770.0,1.03659997]
[1734357624181,0.00017303,103780.0,103770.0,1.27541274]
[1734357624417,0.08007303,103780.0,103770.0,0.41037538]
[1734357624625,0.08007303,103780.0,103770.0,0.2808895]
[1734357624837,0.08007303,103780.0,103760.0,0.61965686]
[1734357624838,0.08007303,103780.0,103760.0,0.25622443]
[1734357625054,0.08007303,103780.0,103770.0,0.038546]
[1734357625670,0.08127756,103780.0,103770.0,0.038546]
[1734357626961,0.08007303,103780.0,103770.0,0.29541397]
[1734357629214,0.17556818,103780.0,103770.0,0.188546]
[1734357634326,0.08007303,103780.0,103770.0,0.29541397]
[1734357635134,0.08007303,103780.0,103770.0,0.29550017]
[1734357636042,0.08007303,103780.0,103770.0,0.1886322]
[1734357636643,0.08007303,103780.0,103770.0,0.1500862]
[1734357636644,0.36707873,103780.0,103770.0,0.1500862]
[1734357636898,0.36707873,103780.0,103770.0,0.15610287]
[1734357637329,0.17436373,103780.0,103770.0,0.15610287]
[1734357637514,0.44694404,103780.0,103770.0,0.15610287]
[1734357637936,0.0815,103770.0,103760.0,0.08637613]
[1734357638143,0.0815,103770.0,103760.0,0.038548]
[1734357638597,0.0764,103760.0,103750.0,0.30809405]
[1734357638751,0.0764,103760.0,103750.0,0.17860817]
[1734357639149,0.07760476,103760.0,103740.0,0.29298924]
[1734357639350,0.07760476,103760.0,103740.0,0.16350336]
[1734357639743,0.07760476,103760.0,103750.0,0.038554]
[1734357639890,0.07760476,103760.0,103740.0,0.16350336]
[1734357639891,0.07760476,103760.0,103740.0,0.20205936]
[1734357641043,0.07760476,103760.0,103740.0,0.23317209]
[1734357641249,0.07760476,103760.0,103740.0,0.19461609]
[1734357641424,0.07760476,103760.0,103750.0,0.038554]
[1734357642387,0.07760476,103760.0,103750.0,0.05359787]
[1734357643410,0.27035676,103760.0,103750.0,0.01504387]
[1734357643664,0.269152,103760.0,103750.0,0.01504387]
[1734357643821,0.0764,103760.0,103750.0,0.01504387]
[1734357644023,0.07760482,103760.0,103750.0,0.01504387]
[1734357647207,0.07760482,103760.0,103750.0,0.01513007]
[1734357648985,0.07760482,103760.0,103750.0,8.62e-05]
[1734357649312,0.27035682,103760.0,103750.0,8.62e-05]
[1734357649549,0.269152,103760.0,103750.0,8.62e-05]
[1734357651448,0.0764,103760.0,103750.0,8.62e-05]
[1734357651687,0.07760482,103760.0,103750.0,0.0386402]
[1734357651958,0.07760482,103760.0,103750.0,0.05368456]
[1734357656801,0.07760482,103760.0,103750.0,0.01513056]
[1734357657005,0.07760482,103760.0,103750.0,0.05368456]
[1734357658290,0.07760482,103760.0,103750.0,0.01513056]
[1734357658980,0.07760482,103760.0,103750.0,8.62e-05]
[1734357659381,0.07777722,103760.0,103750.0,8.62e-05]
[1734357661513,0.07777722,103760.0,103750.0,0.0386402]
[1734357665534,0.07777722,103760.0,103750.0,8.62e-05]
[1734357665741,0.36481992,103760.0,103750.0,8.62e-05]
[1734357665943,0.3636151,103760.0,103750.0,8.62e-05]
[1734357667081,0.38577934,103760.0,103750.0,8.62e-05]
[1734357670507,0.43257934,103760.0,103750.0,8.62e-05]
[1734357671113,0.4604151,103760.0,103750.0,8.62e-05]
[1734357671516,0.5104151,103760.0,103750.0,8.62e-05]
[1734357671714,0.61728307,103760.0,103750.0,8.62e-05]
[1734357671919,0.56728307,103760.0,103750.0,8.62e-05]
[1734357672121,0.61728307,103760.0,103750.0,8.62e-05]
[1734357672323,0.71145833,103760.0,103750.0,8.62e-05]
[1734357673668,0.71145833,103760.0,103750.0,0.0061054]
[1734357673873,0.60459036,103760.0,103750.0,0.00610542]
[1734357674239,0.63173556,103760.0,103750.0,0.00610542]
[1734357678455,0.5375603,103760.0,103750.0,0.00610542]
[1734357678862,0.4875603,103760.0,103750.0,0.00610542]
[1734357679100,0.4604151,103760.0,103750.0,0.00610542]
[1734357679436,0.4104151,103760.0,103750.0,0.00610542]
[1734357679644,0.5104151,103760.0,103750.0,0.00610542]
[1734357680053,0.60459036,103760.0,103750.0,0.00610542]
[1734357683419,0.60459036,103760.0,103730.0,0.07712]
[1734357683420,0.79735336,103760.0,103730.0,0.07712]
[1734357683619,0.0954957,103750.0,103730.0,0.07712]
[1734357683822,0.0954957,103750.0,103730.0,0.11568]
[1734357684018,0.0954957,103750.0,103740.0,0.038557]
[1734357684857,0.0954957,103750.0,103730.0,0.30524797]
[1734357685063,0.0954957,103750.0,103730.0,0.19838]
[1734357685424,0.2882667,103750.0,103730.0,0.12126]
[1734357685833,0.2882667,103750.0,103730.0,0.159821]
[1734357686241,0.2882667,103750.0,103730.0,0.12126]
[1734357686669,0.0793,103740.0,103730.0,0.188561]
[1734357686888,0.080505,103740.0,103730.0,0.188561]
[1734357687903,0.080505,103740.0,103730.0,0.1886166]
[1734357688104,0.080505,103740.0,103730.0,0.2036627]
[1734357689008,0.080505,103740.0,103730.0,0.1886166]
[1734357691240,0.07790501,103750.0,103740.0,0.038557]
[1734357691442,0.07790501,103750.0,103740.0,0.14542497]
[1734357691443,0.00120501,103750.0,103740.0,0.14542497]
[1734357691758,0.00120501,103750.0,103740.0,0.038557]
[1734357693498,0.00120501,103750.0,103740.0,0.14542497]
[1734357693917,0.1248773,103760.0,103750.0,0.038554]